Cogmind - Beta 16.1 @@@ ROGUE MODE // 2026.03.30 @ 21:23:52 Player: ae Result: Escaped! Performance ------------- Evolutions (9) 4500 Regions Visited (19) 3800 Robots Destroyed (85) 425 Value Destroyed (2073) 2073 Prototype IDs (47) 940 Alien Tech Used (0) 0 Bonus (4066) 4066 TOTAL SCORE: 15804 Bonus ------- Follower Combat Kills 266 Entered DSFs 500 Aligned with FarCom 300 Win 3000 Cogmind --------- Core Integrity 1447/1600 Matter 285/300 Energy 87/100 System Corruption 2% Temperature Cool (24) Movement Flying (18) Location To Epsilon Eridani Parts ------- > --- POWER (2) -------- Backup Power VII Backup Power VII > --- PROPULSION (7) --- Cooled VTOL Module Cooled VTOL Module Field Propulsion Drive Impulse Thruster Array Experimental Q-thruster Experimental Q-thruster > --- UTILITY (14) ----- Advanced Cooling System Medium Storage Unit Enhanced Optical Array Advanced Transmission Jammer Advanced ECM Suite Graphene Brace Improved Hacking Suite Advanced Hacking Suite Advanced Hacking Suite Advanced Hacking Suite Advanced Hacking Suite System Shield Improved System Shield Improved System Shield > --- WEAPON (2) ------- Enhanced Nova Cannon Lance > --- INVENTORY (10) --- Cooled VTOL Module Cooled Nuclear Pulse Thruster Impulse Thruster Array Structural Scanner Shock Bomb Launcher Chainsword Peak State ------------ > --- POWER ------------ Backup Power VII Backup Power VII > --- PROPULSION ------- Cooled VTOL Module Cooled VTOL Module Field Propulsion Drive Impulse Thruster Array Experimental Q-thruster Experimental Q-thruster > --- UTILITY ---------- Advanced Power Amplifier Advanced Cooling System Medium Storage Unit Structural Scanner Advanced Transmission Jammer Improved Light Armor Plating Graphene Brace Improved Hacking Suite Advanced Hacking Suite Advanced Hacking Suite Advanced Hacking Suite Advanced Hacking Suite Improved System Shield Improved System Shield > --- WEAPON ----------- Enhanced Nova Cannon Lance > --- INVENTORY -------- Backup Power VII Cooled VTOL Module Cooled Nuclear Pulse Thruster Impulse Thruster Array Advanced ECM Suite Cloaking Device System Shield Shock Bomb Launcher Chainsword [Rating: 157] Favorites ----------- Power Backup Power VII Engine Heavy Ion Engine Power Core Backup Power VII Reactor Micro Antimatter Reactor Propulsion Improved Cesium-ion Thruster Treads Light Treads Leg Improved Aluminum Leg Wheel Wheel Flight Unit Improved Cesium-ion Thruster Utility Advanced Hacking Suite Device Structural Scanner Storage Medium Storage Unit Processor Improved Targeting Computer Hackware Advanced Hacking Suite Protection Improved Light Armor Plating Weapon Assault Rifle Energy Gun Heavy Particle Gun Energy Cannon Enhanced Nova Cannon Ballistic Gun Assault Rifle Ballistic Cannon Assault Cannon Launcher Shock Bomb Launcher Slashing Weapon Chainsword Piercing Weapon Lance Build | -11 -10 -10 -10 -9 -8 -7 -7 -7 -7 -7 -7 -5 -5 -5 -4 -4 -3 -2 -1 ------- Run | Yrd Mat Min Exi Min Mat Fac Was Fac Sto Rec Scr Fac Upp Upp Fac DSF Res Res Acc Slots Evolved 18 | . . . . . 4 2 . . . . . 4 . . 2 . 2 2 2 Power 1 | . . . . . . . . . . . . 1 . . . . . . . Propulsion 5 | . . . . . 2 2 . . . . . . . . . . . . 1 Utility 12 | . . . . . 2 . . . . . . 3 . . 2 . 2 2 1 Weapon . | . . . . . . . . . . . . . . . . . . . . Parts Attached 117 | 7 2 2 . 4 25 15 . 9 6 . 2 10 . 2 3 1 8 8 13 Power 12 | 1 . 1 . . 3 . . . . . . 2 . . . . 2 2 1 Engine 7 | 1 . 1 . . 2 . . . . . . 2 . . . . . 1 . Core 3 | . . . . . 1 . . . . . . . . . . . . 1 1 Reactor 2 | . . . . . . . . . . . . . . . . . 2 . . Propulsion 40 | 2 . . . 2 10 8 . 6 4 . 2 1 . . . . . 2 3 Treads 11 | 2 . . . 2 6 1 . . . . . . . . . . . . . Leg 3 | . . . . . 3 . . . . . . . . . . . . . . Wheel 1 | . . . . . 1 . . . . . . . . . . . . . . Hover . | . . . . . . . . . . . . . . . . . . . . Flight 25 | . . . . . . 7 . 6 4 . 2 1 . . . . . 2 3 Utility 49 | 2 2 . . 1 9 3 . 2 1 . . 6 . 2 3 1 6 3 8 Device 15 | 1 . . . . 3 . . . . . . 3 . 1 1 1 . 3 2 Storage 4 | 1 . . . . 1 . . 1 . . . . . . 1 . . . . Processor 11 | . 1 . . 1 1 1 . 1 . . . 2 . . 1 . 1 . 2 Hackware 11 | . . . . . . 2 . . . . . . . . . . 5 . 4 Protection 8 | . 1 . . . 4 . . . 1 . . 1 . 1 . . . . . Artifact . | . . . . . . . . . . . . . . . . . . . . Weapon 16 | 2 . 1 . 1 3 4 . 1 1 . . 1 . . . . . 1 1 Energy Gun 1 | . . . . . 1 . . . . . . . . . . . . . . Energy Cannon 1 | . . . . . . . . . . . . . . . . . . . 1 Ballistic Gun 6 | 2 . 1 . 1 1 1 . . . . . . . . . . . . . Ballistic Cannon 2 | . . . . . 1 1 . . . . . . . . . . . . . Launcher 2 | . . . . . . 1 . . 1 . . . . . . . . . . Special Weapon . | . . . . . . . . . . . . . . . . . . . . Impact Weapon . | . . . . . . . . . . . . . . . . . . . . Slashing Weapon 2 | . . . . . . 1 . 1 . . . . . . . . . . . Piercing Weapon 2 | . . . . . . . . . . . . 1 . . . . . 1 . Special Melee Weapon . | . . . . . . . . . . . . . . . . . . . . Unidentified Prototypes 6 | . . . . . 1 3 . . . . . 1 . . . . 1 . . Parts Lost 20 | . . 1 . . 9 5 1 . . . . . . . . . . 1 3 Power 3 | . . 1 . . . . . . . . . . . . . . . 1 1 Propulsion 8 | . . . . . 4 3 1 . . . . . . . . . . . . Utility 4 | . . . . . 2 . . . . . . . . . . . . . 2 Weapon 5 | . . . . . 3 2 . . . . . . . . . . . . . Highest Loss Streak 7 | . . 1 . . 7 5 1 . . . . . . . . . . 1 2 To Critical Strikes . | . . . . . . . . . . . . . . . . . . . . Average Backups 8 | 3 7 7 7 8 9 9 7 5 9 9 10 9 10 10 9 9 9 9 8 Power . | . 1 . . . . 1 1 . . . . . . . . . . . . Propulsion 3 | 1 2 3 3 3 3 2 1 . 4 5 5 5 6 5 5 5 5 4 3 Utility 2 | . 1 1 1 2 1 3 3 1 3 3 3 2 2 2 2 2 2 1 2 Weapon 2 | 1 1 3 3 3 3 2 2 2 1 1 1 1 2 2 2 2 2 2 2 Tool/Special . | . . . . . . . . . . . . . . . . . . . . Unused Backups 29 | . 1 1 1 1 3 . 3 2 3 1 2 3 . . 1 . . 3 4 Power . | . . . . . . . . . . . . . . . . . . . . Propulsion 10 | . 1 . . 1 1 . . 2 . . . . . . . . . 2 3 Utility 13 | . . 1 . . . . 3 . 2 1 2 2 . . 1 . . . 1 Weapon 6 | . . . 1 . 2 . . . 1 . . 1 . . . . . 1 . Tool/Special . | . . . . . . . . . . . . . . . . . . . . Average Slot Usage (%) 92 | . 100 98 100 100 93 80 44 51 98 100 100 97 94 94 91 92 92 92 95 Engine 5 | . 14 13 14 14 7 4 . . . . . 4 5 5 5 5 1 1 . Core 3 | . . . . . 1 . . 1 7 7 7 5 5 5 5 5 4 2 6 Treads 11 | . 28 28 28 28 23 20 . . . . . . . . . . . . . Leg 1 | . . . . . 6 . . . . . . . . . . . . . . Flight 17 | . . . . . . 13 15 18 46 46 46 35 35 35 31 31 28 22 24 Device 6 | . 4 . . . 5 . . . . . . 5 11 14 15 19 17 20 19 Storage 7 | . 14 14 14 14 9 7 3 1 7 7 7 5 5 5 5 5 4 4 4 Processor 6 | . 4 14 14 14 12 3 7 12 2 . . 7 5 5 8 5 3 . 2 Hackware 10 | . . . . . . 5 15 15 15 15 15 11 11 11 10 10 18 26 26 Protection 5 | . 5 . . . 7 9 . . 4 7 7 7 5 2 3 5 4 4 3 Energy Gun 1 | . . . . . 6 5 2 . . . . . . . . . . . . Ballistic Gun 8 | . 28 28 28 28 11 5 . . . . . . . . . . . . . Slashing Weapon 1 | . . . . . . . . . 7 7 7 . . . . . . 1 1 Piercing Weapon 1 | . . . . . . . . . . . . 4 5 5 5 5 4 4 4 Peak Build Rating 157 | 7 8 8 8 9 26 43 28 48 58 58 58 76 73 75 85 87 107 130 157 Average Rating 57 | 4 7 7 7 8 19 29 19 26 53 57 57 70 73 74 82 86 100 124 150 On Entrance 47 | . 7 8 7 8 9 25 28 15 48 57 57 58 73 73 75 85 87 103 125 Avg Prop Armor Cover (%) 3 | 29 . . . . 5 1 . . . 1 3 3 . . 2 2 . . 2 Naked Turns . | . . . . . . . . . . . . . . . . . . . . Heaviest Build 47 | 13 13 14 14 14 36 36 13 17 26 26 26 34 25 25 28 29 35 39 47 Greatest Support 91 | 40 40 40 40 40 83 91 15 36 36 34 36 37 37 37 37 37 38 44 52 Greatest Overweight (x) 8 | 1 . . . . 5 . . 1 . 8 1 1 . . . . . . . Average Overweight (x) . | . . . . . . . . . . . . . . . . . . . . Largest Inventory Capacity 10 | 8 8 8 8 8 10 10 10 10 10 10 10 10 10 10 10 10 10 10 10 Average Capacity 9 | 5 8 8 8 8 9 10 6 5 10 10 10 10 10 10 10 10 10 10 10 Most Carried 10 | 5 8 8 8 8 10 10 10 10 10 10 10 10 10 10 10 10 10 10 10 Average Carried 8 | 3 7 7 7 8 9 9 6 5 9 9 10 9 10 10 9 9 9 9 9 Final Capacity 10 | 8 8 8 8 8 10 10 5 10 10 10 10 10 10 10 10 10 10 10 10 Final Carried 10 | 5 8 8 8 8 10 9 5 10 9 10 10 10 10 10 10 9 10 9 7 Class Distribution -------------------- 22% | Mutant 18% | Hacker-Sprinter 14% | Scavenger-Mutant 12% | Wizard-Sprinter 8% | Wizard-Ninja 8% | Scavenger-Skirmisher 7% | Hacker-Mutant 3% | Commander-Sprinter Dominant Class ---------------- Mutant | -10/Materials Mutant | -10/Mines Mutant | -10/Exiles Mutant | -9/Mines Scavenger-Skirmisher | -8/Materials Scavenger-Mutant | -7/Factory Hacker-Mutant | -7/Waste Hacker-Mutant | -7/Factory Commander-Sprinter | -7/Storage Hacker-Sprinter | -7/Recycling Hacker-Mutant | -7/Scraptown Hacker-Scout | -5/Factory Hacker-Sprinter | -5/Upper Caves Hacker-Sprinter | -5/Upper Caves Hacker-Sprinter | -4/Factory Hacker-Sprinter | -4/DSF Hacker-Sprinter | -3/Research Wizard-Sprinter | -2/Research Wizard-Ninja | -1/Access Resources | -11 -10 -10 -10 -9 -8 -7 -7 -7 -7 -7 -7 -5 -5 -5 -4 -4 -3 -2 -1 ----------- Run | Yrd Mat Min Exi Min Mat Fac Was Fac Sto Rec Scr Fac Upp Upp Fac DSF Res Res Acc Matter Collected 2583 | 299 201 35 . 58 714 224 . 203 185 25 20 90 10 10 . 6 76 178 249 Remotely . | . . . . . . . . . . . . . . . . . . . . Salvage Created 3411 | 146 266 102 . 104 1268 209 . 39 296 92 . 357 . . . . 106 244 182 Parts 193 | 12 17 3 . 10 77 16 . 5 22 3 . 9 . . . . 4 9 6 Haulers Intercepted 11 | . 1 . . . 4 . . . 3 . . 2 . . . . . . 1 Recyclers Shooed 5 | . 1 . . . 3 . . . . . . . . . . . . 1 . Parts Field Recycled . | . . . . . . . . . . . . . . . . . . . . Retrieved Matter . | . . . . . . . . . . . . . . . . . . . . Parts Self-Destructed . | . . . . . . . . . . . . . . . . . . . . Prevented . | . . . . . . . . . . . . . . . . . . . . Parts Restored . | . . . . . . . . . . . . . . . . . . . . Kills | -11 -10 -10 -10 -9 -8 -7 -7 -7 -7 -7 -7 -5 -5 -5 -4 -4 -3 -2 -1 ------- Run | Yrd Mat Min Exi Min Mat Fac Was Fac Sto Rec Scr Fac Upp Upp Fac DSF Res Res Acc Combat Hostiles Destroyed 38 | . 6 2 . 1 20 2 . 4 2 . . . . . . . 1 . . Melee 3 | . . . . . . . . . 2 . . . . . . . 1 . . Guns 29 | . 6 2 . 1 20 . . . . . . . . . . . . . . AOE 6 | . . . . . . 2 . 4 . . . . . . . . . . . Classes Destroyed 12 | 3 5 . . . 4 . . . . . . . . . . . . . . Worker 6 | 1 1 . . . 2 1 . . . . . . . . . . . 1 . Builder 5 | . . . . . 3 . . . 1 1 . . . . . . . . . Tunneler 4 | 2 . . . 1 1 . . . . . . . . . . . . . . Hauler 11 | . 1 . . . 4 . . . 3 . . 2 . . . . . . 1 Recycler 7 | 1 . . . 1 . 2 . . . 1 . 1 . . . . . 1 . Operator 6 | . 1 . . . . 2 . . . . . 1 . . . . 1 1 . Watcher 8 | . 1 . . . 2 . . . 1 . . . . . . . 1 1 2 Swarmer 13 | . 3 . . . 3 2 . 4 . . . . . . . . 1 . . Grunt 15 | . 3 2 . 1 8 . . . 1 . . . . . . . . . . Duelist 2 | . . . . . 2 . . . . . . . . . . . . . . Sentry 6 | . . . . . 5 . . . 1 . . . . . . . . . . Hunter 2 | . . . . . 2 . . . . . . . . . . . . . . Best Kill Streak 4 | 2 4 2 . 1 4 4 . 4 3 2 . 1 . . . . 1 3 1 Combat Bots Only 4 | . 3 2 . 1 3 2 . 4 1 . . . . . . . 1 . . Max Kills in Single Turn 4 | 1 2 2 . 1 1 4 . 2 1 1 . 1 . . . . 1 1 1 Gunslinging 1 | . 1 1 . . . . . . . . . . . . . . . . . Exploded 2 | . . . . . . 2 . 2 . . . . . . . . . . . Melee 1 | . . . . . . . . . 1 . . . . . . . 1 . . Uniques/NPCs Destroyed . | . . . . . . . . . . . . . . . . . . . . Combat | -11 -10 -10 -10 -9 -8 -7 -7 -7 -7 -7 -7 -5 -5 -5 -4 -4 -3 -2 -1 -------- Run | Yrd Mat Min Exi Min Mat Fac Was Fac Sto Rec Scr Fac Upp Upp Fac DSF Res Res Acc Hostile Shots Fired 401 | . 20 10 . . 148 15 1 26 28 . . 15 3 . . 5 38 13 79 Missed 161 | . 2 1 . . 41 5 . 17 19 . . 10 1 . . 4 14 6 41 Hits 240 | . 18 9 . . 107 10 1 9 9 . . 5 2 . . 1 24 7 38 Melee 4 | . . . . . 1 . 1 . . . . . . . . 1 . . 1 Projectile 236 | . 18 9 . . 106 10 . 9 9 . . 5 2 . . . 24 7 37 AOE 6 | . . . . . . 5 . . . . . . . . . 1 . . . Critical Strikes 9 | . . . . . 7 . . . . . . . . . . . 1 1 . Actively Blocked 1 | . . . . . . . . . . . . . . . . . . 1 . Damage Taken 4317 | . 206 120 . . 1586 453 43 169 79 . . 102 39 . . 45 470 348 657 Core 986 | . 29 30 . . 158 156 43 60 27 . . 23 . . . . 164 143 153 Absorbed by Shields 8 | . . . . . . . . . . . . . . . . . . . 8 Redirected to Shielding 9 | . 9 . . . . . . . . . . . . . . . . . . Regen/Repaired (Parts) 71 | . . . . . . 71 . . . . . . . . . . . . . Core Remaining (%) 85 | 100 . . . 76 71 . . . . . 59 . . 97 . 100 87 90 90 Volleys Fired 296 | 10 27 4 . 3 108 40 . 2 4 . . . . . . . 2 . 96 Largest 2 | 2 2 2 . 2 2 2 . 1 1 . . . . . . . 1 . 1 Hottest 120 | 40 40 40 . 40 78 78 . 39 37 . . . . . . . 36 . 120 Shots Fired 450 | 20 54 8 . 6 216 42 . 2 4 . . . . . . . 2 . 96 Gun 308 | 20 54 8 . 6 202 18 . . . . . . . . . . . . . Cannon 136 | . . . . . 14 23 . . 3 . . . . . . . . . 96 Launcher 6 | . . . . . . 1 . 2 1 . . . . . . . 2 . . Special . | . . . . . . . . . . . . . . . . . . . . Kinetic 271 | 20 54 8 . 6 148 32 . . 3 . . . . . . . . . . Thermal 173 | . . . . . 68 9 . . . . . . . . . . . . 96 Explosive 3 | . . . . . . 1 . 2 . . . . . . . . . . . Electromagnetic 3 | . . . . . . . . . 1 . . . . . . . 2 . . Robot Hit Streak 12 | 3 9 9 . 10 12 6 . . . . . . . . . . 2 . . Robot Miss Streak 7 | 7 4 . . 2 5 3 . 1 . . . . . . . . . . . Penetration Max . | . . . . . . . . . . . . . . . . . . . . Secondary Targets 9 | . 1 1 . . 7 . . . . . . . . . . . . . . Max Gunslinging Chain 1 | . 1 1 . . 1 . . . . . . . . . . . . . . Shots Hit Robots 272 | 8 37 8 . 4 143 18 . . 14 3 . 8 . . . . 11 7 11 Core Hits 129 | 4 15 4 . 3 59 11 . 4 8 2 . 2 . . . . 7 4 6 Critical Kills . | . . . . . . . . . . . . . . . . . . . . Critical Parts Destroyed . | . . . . . . . . . . . . . . . . . . . . Critical Strikes 6 | . . . . . 1 1 . . 2 . . . . . . . 1 . 1 Burn 1 | . . . . . . 1 . . . . . . . . . . . . . Blast 1 | . . . . . 1 . . . . . . . . . . . . . . Sever 2 | . . . . . . . . . 2 . . . . . . . . . . Impale 2 | . . . . . . . . . . . . . . . . . 1 . 1 Melee Attacks 161 | . . . . . . . . 2 26 3 . 16 . 1 5 5 30 23 50 Impact . | . . . . . . . . . . . . . . . . . . . . Slashing 40 | . . . . . . . . 2 26 3 . . . . . . . 1 8 Piercing 121 | . . . . . . . . . . . . 16 . 1 5 5 30 22 42 Sneak Attacks 18 | . . . . . . . . . 6 1 . 5 . . . . 2 2 2 Combat Hostiles 1 | . . . . . . . . . 1 . . . . . . . . . . Follow-up Attacks 2 | . . . . . . . . . . . . . . . . . . . 2 Damage Inflicted 7732 | 96 493 99 . 66 2330 679 . 356 851 153 . 696 . . . . 795 485 633 Guns 3064 | 96 482 99 . 62 2126 199 . . . . . . . . . . . . . Cannons 381 | . . . . . 183 198 . . . . . . . . . . . . . Explosions 936 | . . . . . . 282 . 356 62 . . . . . . . 200 . 36 Melee 3315 | . . . . . . . . . 789 153 . 696 . . . . 595 485 597 Ramming 36 | . 11 . . 4 21 . . . . . . . . . . . . . . Kinetic 2467 | 96 482 99 . 62 1441 287 . . . . . . . . . . . . . Thermal 1014 | . . . . . 868 110 . . . . . . . . . . . . 36 Explosive 638 | . . . . . . 282 . 356 . . . . . . . . . . . Electromagnetic 262 | . . . . . . . . . 62 . . . . . . . 200 . . Impact . | . . . . . . . . . . . . . . . . . . . . Slashing 1018 | . . . . . . . . . 789 153 . . . . . . . . 76 Piercing 2297 | . . . . . . . . . . . . 696 . . . . 595 485 521 Highest Corruption 2 | . . . . . . . . . . . . 1 1 1 . . . 1 2 Average Corruption 1 | . . . . . . . . . . . . 1 1 1 . . . 1 2 Corruption Purged . | . . . . . . . . . . . . . . . . . . . . Corruption Blocked . | . . . . . . . . . . . . . . . . . . . . Effects 8 | . . . . . . . . . . . . 2 1 . . . . 1 4 Message Errors 2 | . . . . . . . . . . . . 1 . . . . . . 1 Matter Fused 1 | . . . . . . . . . . . . . . . . . . 1 . Heat Flow Errors 2 | . . . . . . . . . . . . . 1 . . . . . 1 Energy Discharges 2 | . . . . . . . . . . . . . . . . . . . 2 Data Loss (minor) 1 | . . . . . . . . . . . . 1 . . . . . . . Overload Shots . | . . . . . . . . . . . . . . . . . . . . Overflow Damage 506 | . . . . . . . . 29 19 41 . 144 . . . . 121 66 86 Projectiles . | . . . . . . . . . . . . . . . . . . . . Explosions 29 | . . . . . . . . 29 . . . . . . . . . . . Melee 477 | . . . . . . . . . 19 41 . 144 . . . . 121 66 86 Knockbacks 2 | . . . . . 1 1 . . . . . . . . . . . . . Impact . | . . . . . . . . . . . . . . . . . . . . Kinetic 2 | . . . . . 1 1 . . . . . . . . . . . . . Secondary . | . . . . . . . . . . . . . . . . . . . . Self-Inflicted Damage 29 | . . . . . . . . 29 . . . . . . . . . . . Shots 1 | . . . . . . . . 1 . . . . . . . . . . . Rammed 3 | . 2 . . . 1 . . . . . . . . . . . . . . Targets Rammed 8 | . 3 . . 1 4 . . . . . . . . . . . . . . Kicked 2 | . . . . . 2 . . . . . . . . . . . . . . Crushed 3 | . 1 . . 1 1 . . . . . . . . . . . . . . Highest Temperature 300 | . 2 9 . . 242 32 . 47 156 192 208 300 191 . . . 104 2 177 Average Temperature 56 | . 2 5 . . 74 9 . 21 32 69 66 66 108 . . . 43 2 20 Received Heat Transfer 945 | . 63 66 . . 666 60 . 18 30 . . 18 . . . . . . 24 Effects 2 | . . . . . 2 . . . . . . . . . . . . . . Energy Bleed 2 | . . . . . 2 . . . . . . . . . . . . . . Siege Activations . | . . . . . . . . . . . . . . . . . . . . Martial Activations . | . . . . . . . . . . . . . . . . . . . . Shielding Activations . | . . . . . . . . . . . . . . . . . . . . Robots Disrupted . | . . . . . . . . . . . . . . . . . . . . Combat Hostiles . | . . . . . . . . . . . . . . . . . . . . Robots Corrupted . | . . . . . . . . . . . . . . . . . . . . Combat Hostiles . | . . . . . . . . . . . . . . . . . . . . Parts Fried . | . . . . . . . . . . . . . . . . . . . . Impact Corruptions . | . . . . . . . . . . . . . . . . . . . . Robots Melted . | . . . . . . . . . . . . . . . . . . . . Combat Hostiles . | . . . . . . . . . . . . . . . . . . . . Parts Melted 4 | . . . . . 4 . . . . . . . . . . . . . . Heat Transferred 2011 | . . . . . 1665 296 . . . . . . . . . . . . 50 Parts Sabotaged . | . . . . . . . . . . . . . . . . . . . . Parts Stolen . | . . . . . . . . . . . . . . . . . . . . Parts Stripped . | . . . . . . . . . . . . . . . . . . . . Power Chain Reactions . | . . . . . . . . . . . . . . . . . . . . Alert | -11 -10 -10 -10 -9 -8 -7 -7 -7 -7 -7 -7 -5 -5 -5 -4 -4 -3 -2 -1 ------- Run | Yrd Mat Min Exi Min Mat Fac Was Fac Sto Rec Scr Fac Upp Upp Fac DSF Res Res Acc Maximum Alert Level 1 | . . . . . . . . . 1 . . . . . . . . . 1 Low Security (%) 96 | 100 100 100 . 100 100 100 100 100 42 100 . 100 . . 100 100 100 100 95 Level 1 3 | . . . . . . . . . 57 . . . . . . . . . 4 Level 2 . | . . . . . . . . . . . . . . . . . . . . Level 3 . | . . . . . . . . . . . . . . . . . . . . Level 4 . | . . . . . . . . . . . . . . . . . . . . Level 5 . | . . . . . . . . . . . . . . . . . . . . High Security . | . . . . . . . . . . . . . . . . . . . . Max Security . | . . . . . . . . . . . . . . . . . . . . Peak Influence 336 | 10 70 50 . 20 125 83 15 150 336 106 . 71 . . 6 27 123 21 294 Initial 106 | . . . . . . 45 9 3 63 106 . . . . . 2 15 21 3 Average 31 | 1 27 18 . . 37 15 8 38 172 47 . 13 . . 1 9 41 5 31 Influence Increases 3172 | 20 182 50 . 30 634 196 15 190 491 20 . 187 30 . 17 25 277 82 726 Destroy 0b10 Robot/C 900 | . 120 40 . 20 400 40 . 80 180 . . . . . . . 20 . . Destroy 0b10 Robot/NC 235 | 20 20 . . 10 60 25 . . 25 10 . 20 . . . . 10 20 15 Destroy Leader 278 | . 34 10 . . 132 10 . 10 68 . . 4 . . . . 2 2 6 Allied During Kill 110 | . . . . . . . . . 110 . . . . . . . . . . Successful Hack 208 | . 8 . . . 8 15 . 24 10 10 . 61 . . 7 . 26 9 30 Disable Machine 120 | . . . . . . 15 . . 30 . . 15 . . . . . 15 45 Destroy Structure 511 | . . . . . 4 16 . 16 8 . . 12 . . 10 10 24 36 375 Partial Spotted 195 | . . . . . . 30 15 15 60 . . 30 . . . . 15 . 30 Lose Combat Pursuer 615 | . . . . . 30 45 . 45 . . . 45 30 . . 15 180 . 225 Influence Decreases 2966 | 20 181 51 . 30 533 269 38 55 358 293 . 134 63 20 14 1 266 114 526 Entered New Map 379 | . . 1 . . . 56 19 2 77 167 . . 20 4 . 1 12 17 3 Time Decay 1959 | 20 181 50 . 30 379 163 19 53 137 126 . 117 43 16 14 . 141 84 386 Search Patrol Dispatched 100 | . . . . . . . . . . . . . . . . . . . 100 Lost Part 180 | . . . . . 90 50 . . . . . . . . . . . 10 30 Lost Ally 108 | . . . . . . . . . 81 . . 17 . . . . 10 . . Purge Threat 240 | . . . . . 64 . . . 63 . . . . . . . 103 3 7 Squads Dispatched 34 | . 1 . . . 2 3 . 3 3 . . 6 . . . 1 4 2 9 Investigation 6 | . . . . . 1 . . 2 . . . 1 . . . . . . 2 Extermination 16 | . . . . . . 2 . 1 1 . . 2 . . . . 2 2 6 Reinforcement 11 | . 1 . . . . 1 . . 2 . . 3 . . . 1 2 . 1 Assault . | . . . . . . . . . . . . . . . . . . . . Garrison 1 | . . . . . 1 . . . . . . . . . . . . . . Intercept . | . . . . . . . . . . . . . . . . . . . . Searches Triggered 1 | . . . . . . . . . . . . . . . . . . . 1 Construction Impeded 1 | . . . . . . . . . . . . . . . . . 1 . . Haulers Reinforced 4 | . . . . . . . . . 2 . . 2 . . . . . . . Active Scanning Responses . | . . . . . . . . . . . . . . . . . . . . Cargo Convoy Interrupts . | . . . . . . . . . . . . . . . . . . . . Stealth | -11 -10 -10 -10 -9 -8 -7 -7 -7 -7 -7 -7 -5 -5 -5 -4 -4 -3 -2 -1 --------- Run | Yrd Mat Min Exi Min Mat Fac Was Fac Sto Rec Scr Fac Upp Upp Fac DSF Res Res Acc Distress Signals 12 | . 1 . . . 4 . . 1 2 . . . . . . . . . 4 Communications Jammed 17 | . . . . . . . . . . . . . . . . . 7 . 10 Distress Signals 17 | . . . . . . . . . . . . . . . . . 7 . 10 Times Spotted 186 | . 13 2 . 5 33 11 6 12 9 . . 9 2 . . 4 19 8 53 Peak Tracking Total 9 | . 3 2 . 3 7 4 6 7 5 . . 5 2 . . 3 8 5 9 Tactical Retreats 27 | . . . . . 2 2 . 1 . . . 2 1 . . 1 6 1 11 ECM-based Alert Blocks 14 | . . . . . . . . . . . . . . . . . . 4 10 Traps | -11 -10 -10 -10 -9 -8 -7 -7 -7 -7 -7 -7 -5 -5 -5 -4 -4 -3 -2 -1 ------- Run | Yrd Mat Min Exi Min Mat Fac Was Fac Sto Rec Scr Fac Upp Upp Fac DSF Res Res Acc Traps Triggered 14 | . 1 . . . 1 1 . 3 . . . 1 . . 1 . . 1 5 Indirectly . | . . . . . . . . . . . . . . . . . . . . Trap Hack Attempts . | . . . . . . . . . . . . . . . . . . . . Triggered . | . . . . . . . . . . . . . . . . . . . . Disarmed . | . . . . . . . . . . . . . . . . . . . . Reprogrammed . | . . . . . . . . . . . . . . . . . . . . Reused . | . . . . . . . . . . . . . . . . . . . . Traps Extracted . | . . . . . . . . . . . . . . . . . . . . Installed . | . . . . . . . . . . . . . . . . . . . . Triggered . | . . . . . . . . . . . . . . . . . . . . Machines | -11 -10 -10 -10 -9 -8 -7 -7 -7 -7 -7 -7 -5 -5 -5 -4 -4 -3 -2 -1 ---------- Run | Yrd Mat Min Exi Min Mat Fac Was Fac Sto Rec Scr Fac Upp Upp Fac DSF Res Res Acc Machines Disabled 8 | . . . . . . 1 . . 2 . . 1 . . . . . 1 3 Max in Single Turn 1 | . . . . . . 1 . . 1 . . 1 . . . . . 1 1 Garrison Access 5 | . . . . . 1 . . . . . . 1 . . . . . . 3 Energy Cycler 1 | . . . . . . . . . . . . . . . . . . . 1 Machines Repaired . | . . . . . . . . . . . . . . . . . . . . Machines Dismantled . | . . . . . . . . . . . . . . . . . . . . Machines Sabotaged . | . . . . . . . . . . . . . . . . . . . . Overloaded Fab Kills . | . . . . . . . . . . . . . . . . . . . . Hacking | -11 -10 -10 -10 -9 -8 -7 -7 -7 -7 -7 -7 -5 -5 -5 -4 -4 -3 -2 -1 --------- Run | Yrd Mat Min Exi Min Mat Fac Was Fac Sto Rec Scr Fac Upp Upp Fac DSF Res Res Acc Machines Accessed 91 | . 3 . 2 . 4 5 . 6 11 9 1 15 . 2 2 . 5 6 20 Terminals 50 | . 3 . . . 3 2 . 3 7 6 . 6 . . 2 . 4 2 12 Fabricators 5 | . . . . . . 1 . . . . . 2 . . . . . . 2 Repair Stations 9 | . . . . . . 1 . 1 2 . . 2 . . . . . 1 2 Recycling Units 11 | . . . . . . 1 . 1 2 2 . 3 . . . . . 1 1 Scanalyzers 5 | . . . . . . . . 1 . . . 1 . . . . 1 2 . Garrison Access 5 | . . . . . 1 . . . . . . 1 . . . . . . 3 Total Hacks 204 | . 6 . 2 . 8 10 . 20 24 23 8 33 . 2 5 . 12 16 35 Successful 115 | . 4 . 2 . 3 5 . 12 12 8 8 11 . 2 3 . 7 14 24 Failed 89 | . 2 . . . 5 5 . 8 12 15 . 22 . . 2 . 5 2 11 Catastrophic 21 | . . . . . 2 2 . . 3 4 . 6 . . . . 1 . 3 Database Lockouts . | . . . . . . . . . . . . . . . . . . . . Manual 63 | . 1 . 1 . 2 5 . . 5 8 . 10 . . 1 . 7 5 18 Terminals 118 | . 6 . . . 7 3 . 5 14 16 . 16 . . 5 . 10 9 27 Fabricators 7 | . . . . . . 2 . . . . . 3 . . . . . . 2 Repair Stations 19 | . . . . . . 2 . 3 5 . . 6 . . . . . 1 2 Recycling Units 24 | . . . . . . 3 . 3 5 6 . 5 . . . . . 1 1 Scanalyzers 18 | . . . . . . . . 9 . . . 2 . . . . 2 5 . Garrison Access 5 | . . . . . 1 . . . . . . 1 . . . . . . 3 Terminal Hacks 59 | . 3 . 2 . 2 . . 2 7 4 8 3 . 2 2 . 4 7 13 Record 10 | . . . 1 . . . . . . 1 8 . . . . . . . . Robot Analysis 3 | . . . . . . . . . . 1 . . . . . . . . 2 Prototype ID Bank 6 | . 1 . . . . . . . 1 1 . 1 . . 1 . 1 . . Open Door 4 | . . . . . . . . . 1 . . . . 2 . . . . 1 Open DSF 3 | . . . . . . . . 1 . . . 1 . . 1 . . . . Level Access Points 2 | . . . . . . . . . . . . . . . . . . 1 1 Branch Access Points 3 | . . . . . . . . . 1 . . . . . . . 1 1 . Machine Index 1 | . . . . . . . . . . . . . . . . . . 1 . Terminal Index 2 | . . . . . . . . . 1 . . . . . . . . . 1 Unreport Threat 9 | . . . . . 2 . . . 1 . . . . . . . 2 2 2 Locate Traps 3 | . 2 . . . . . . . 1 . . . . . . . . . . Maintenance Status 1 | . . . . . . . . . . . . . . . . . . 1 . Recall Investigation 1 | . . . . . . . . . . . . . . . . . . . 1 Recall Extermination 5 | . . . . . . . . . . . . . . . . . . 1 4 Recall Reinforcements 1 | . . . . . . . . . . . . . . . . . . . 1 Hauler Manifests 1 | . . . . . . . . . 1 . . . . . . . . . . Registered Components 1 | . . . . . . . . 1 . . . . . . . . . . . Registered Prototypes 1 | . . . . . . . . . . 1 . . . . . . . . . Zone Layout 1 | . . . . . . . . . . . . 1 . . . . . . . Proto ID Catalog 1 | . . . 1 . . . . . . . . . . . . . . . . Fabricator Hacks . | . . . . . . . . . . . . . . . . . . . . Repair Station Hacks 10 | . . . . . . 2 . 1 2 . . 2 . . . . . 1 2 Scan Component 5 | . . . . . . 1 . . 2 . . 2 . . . . . . . Repair 1 | . . . . . . 1 . . . . . . . . . . . . . Refit 4 | . . . . . . . . 1 . . . . . . . . . 1 2 Recycling Unit Hacks 10 | . . . . . . 2 . 1 2 2 . 1 . . . . . 1 1 Retrieve Components 10 | . . . . . . 2 . 1 2 2 . 1 . . . . . 1 1 Scanalyzer 15 | . . . . . . . . 8 . . . . . . . . 2 5 . Insert Component 4 | . . . . . . . . 1 . . . . . . . . . 3 . Analyze 1 | . . . . . . . . 1 . . . . . . . . . . . Retrieve Study 10 | . . . . . . . . 6 . . . . . . . . 2 2 . Garrison Access Hacks 5 | . . . . . 1 . . . . . . 1 . . . . . . 3 Seal Access 5 | . . . . . 1 . . . . . . 1 . . . . . . 3 Unauthorized Hacks 16 | . 1 . . . . 1 . . 1 2 . 4 . . 1 . 1 . 5 Terminals 11 | . 1 . . . . . . . . 2 . 3 . . 1 . 1 . 3 Track 1 | . . . . . . . . . . 1 . . . . . . . . . Assimilate 4 | . . . . . . . . . . . . 1 . . . . 1 . 2 Botnet 4 | . 1 . . . . . . . . . . 1 . . 1 . . . 1 Operators 2 | . . . . . . . . . . 1 . 1 . . . . . . . Fabricators 4 | . . . . . . 1 . . . . . 1 . . . . . . 2 Liberate 3 | . . . . . . 1 . . . . . 1 . . . . . . 1 Haulers 1 | . . . . . . . . . . . . . . . . . . . 1 Repair Stations . | . . . . . . . . . . . . . . . . . . . . Recycling Units 1 | . . . . . . . . . 1 . . . . . . . . . . Reject 1 | . . . . . . . . . 1 . . . . . . . . . . Scanalyzers . | . . . . . . . . . . . . . . . . . . . . Garrison Access . | . . . . . . . . . . . . . . . . . . . . Data Cores Recovered 1 | . . . . . . 1 . . . . . . . . . . . . . Used . | . . . . . . . . . . . . . . . . . . . . Hacking Detections 67 | . 3 . . . 3 3 . 5 7 8 . 12 . . 1 . 5 4 16 Full Trace Events 5 | . . . . . 1 . . 1 . . . 1 . . . . . . 2 Feedback Events . | . . . . . . . . . . . . . . . . . . . . Feedback Blocked . | . . . . . . . . . . . . . . . . . . . . Robot Schematics Acquired . | . . . . . . . . . . . . . . . . . . . . Robots Built . | . . . . . . . . . . . . . . . . . . . . Authchips . | . . . . . . . . . . . . . . . . . . . . Time . | . . . . . . . . . . . . . . . . . . . . Total Robot Build Rating . | . . . . . . . . . . . . . . . . . . . . Part Schematics Acquired 1 | . . . . . . . . 1 . . . . . . . . . . . Parts Built . | . . . . . . . . . . . . . . . . . . . . Authchips . | . . . . . . . . . . . . . . . . . . . . Time . | . . . . . . . . . . . . . . . . . . . . Total Part Build Rating . | . . . . . . . . . . . . . . . . . . . . Part Studies Acquired 10 | . . . . . . . . 6 . . . . . . . . 2 2 . Parts Repaired 1 | . . . . . . 1 . . . . . . . . . . . . . Time 32 | . . . . . . 32 . . . . . . . . . . . . . Parts Recycled . | . . . . . . . . . . . . . . . . . . . . Recycled Matter . | . . . . . . . . . . . . . . . . . . . . Retrieved Matter . | . . . . . . . . . . . . . . . . . . . . Retrieved Components 21 | . . . . . . . . 2 11 3 . 1 . . . . . 1 3 Parts Scanalyzed 1 | . . . . . . . . 1 . . . . . . . . . . . Part Schematics Acquired 1 | . . . . . . . . 1 . . . . . . . . . . . Parts Damaged . | . . . . . . . . . . . . . . . . . . . . Bothacking | -11 -10 -10 -10 -9 -8 -7 -7 -7 -7 -7 -7 -5 -5 -5 -4 -4 -3 -2 -1 ------------ Run | Yrd Mat Min Exi Min Mat Fac Was Fac Sto Rec Scr Fac Upp Upp Fac DSF Res Res Acc Used RIF Installer . | . . . . . . . . . . . . . . . . . . . . Robots Hacked . | . . . . . . . . . . . . . . . . . . . . Non-combat . | . . . . . . . . . . . . . . . . . . . . Combat . | . . . . . . . . . . . . . . . . . . . . Robot Hacks Applied . | . . . . . . . . . . . . . . . . . . . . Relay Couplers Released 2 | . . . . . 2 . . . . . . . . . . . . . . Machine Destruction 2 | . . . . . 2 . . . . . . . . . . . . . . Fabnet Peak Effective % . | . . . . . . . . . . . . . . . . . . . . Robots Rewired . | . . . . . . . . . . . . . . . . . . . . Allies Hacked . | . . . . . . . . . . . . . . . . . . . . Hacks Repelled . | . . . . . . . . . . . . . . . . . . . . Allies | -11 -10 -10 -10 -9 -8 -7 -7 -7 -7 -7 -7 -5 -5 -5 -4 -4 -3 -2 -1 -------- Run | Yrd Mat Min Exi Min Mat Fac Was Fac Sto Rec Scr Fac Upp Upp Fac DSF Res Res Acc Total Allies 13 | . . . . . . . . . 10 . . 1 . . . . 1 . 1 Largest Group 10 | . . . . . . . . . 10 1 1 1 . . . . 1 . 1 Highest-Rated Group 173 | . . . . . . . . . 173 16 16 26 . . . . 26 . 45 Highest-Rated Ally 45 | . . . . . . . . . 29 16 16 26 . . . . 26 . 45 Total Orders 2 | . . . . . . . . . 2 . . . . . . . . . . STAY 1 | . . . . . . . . . 1 . . . . . . . . . . FOLLOW 1 | . . . . . . . . . 1 . . . . . . . . . . Ally Attacks 81 | . . . . . . . . . 81 . . . . . . . . . . Total Damage 1039 | . . . . . . . . . 1039 . . . . . . . . . . Kills 8 | . . . . . . . . . 8 . . . . . . . . . . Allies Corrupted . | . . . . . . . . . . . . . . . . . . . . Allies Melted . | . . . . . . . . . . . . . . . . . . . . Intel | -11 -10 -10 -10 -9 -8 -7 -7 -7 -7 -7 -7 -5 -5 -5 -4 -4 -3 -2 -1 ------- Run | Yrd Mat Min Exi Min Mat Fac Was Fac Sto Rec Scr Fac Upp Upp Fac DSF Res Res Acc Active Infowar (turns) 4791 | 21 132 . . . 1231 421 56 254 116 . . 385 105 47 86 33 301 323 1280 Optics 1487 | . . . . . . 254 56 254 116 . . . . . . . . . 807 IFF 47 | . . . . . . . . . . . . . . 30 17 . . . . Terrain 657 | . . . . . 657 . . . . . . . . . . . . . . Structural 2320 | . . . . . . . . . . . . 385 105 47 86 19 299 323 1056 Seismic 304 | 21 132 . . . 151 . . . . . . . . . . . . . . T.N.C. 939 | . . . . . 571 167 . . . . . 201 . . . . . . . Cloaking 2 | . . . . . . . . . . . . . . . . . . . 2 Jamming 1172 | . . . . . . . . . . . . . . . . 32 199 226 715 ECM 216 | . . . . . . . . . . . . . . . . . . 54 162 Robot Analysis Total 3 | . . . . . . . . . . 1 . . . . . . . . 2 Derelict Logs Recovered 4 | . . . . 1 . . . . . . . . 2 1 . . . . . Drone Launches . | . . . . . . . . . . . . . . . . . . . . Drone Recoveries . | . . . . . . . . . . . . . . . . . . . . Exploration | -11 -10 -10 -10 -9 -8 -7 -7 -7 -7 -7 -7 -5 -5 -5 -4 -4 -3 -2 -1 ------------- Run | Yrd Mat Min Exi Min Mat Fac Was Fac Sto Rec Scr Fac Upp Upp Fac DSF Res Res Acc Turns Passed 7758 | 161 458 136 352 591 1278 845 56 254 301 287 436 391 120 47 86 38 318 323 1280 Spaces Moved 11772 | 101 224 75 219 269 536 644 167 583 511 678 649 991 422 182 249 92 866 1035 3279 Core 67 | 52 . . . . 9 . . 5 . 1 . . . . . . . . . Treads 1638 | 49 224 75 219 269 481 321 . . . . . . . . . . . . . Legs 27 | . . . . . 27 . . . . . . . . . . . . . . Wheels 19 | . . . . . 19 . . . . . . . . . . . . . . Hover . | . . . . . . . . . . . . . . . . . . . . Flight 10021 | . . . . . . 323 167 578 511 677 649 991 422 182 249 92 866 1035 3279 Fastest Speed 12 | 50 160 160 160 160 95 25 30 22 20 20 20 20 21 21 21 21 21 19 12 Average Speed 43 | 113 160 160 160 160 160 94 32 32 21 22 58 21 21 21 22 21 21 22 18 Slowest Speed 450 | 160 160 160 160 160 300 160 35 100 22 450 91 88 21 21 23 23 21 24 21 Overloaded Moves 1 | . . . . . . . . . . . . . . . . . . . 1 Propulsion Burnouts . | . . . . . . . . . . . . . . . . . . . . Robots Hopped 75 | . . . . . . 11 4 8 4 4 . 9 . . . 1 7 3 24 Potential Cave-ins 2 | . . . . . . . . . . . . . . . . . . . 2 Cave-ins Triggered . | . . . . . . . . . . . . . . . . . . . . Exploration Rate (%) 47 | 4 40 20 62 55 45 17 100 20 68 97 54 33 69 22 8 94 32 30 74 Regions Visited 19 Branch Regions 8 Pre-discovered Areas 3 | . . . 1 1 . . . . . . . . 1 . . . . . . Known Exits Taken 3 | . . . . . . . . . 1 . . . . . 1 . . 1 . Unknown Exits Taken 13 | 1 1 1 1 1 1 . . 1 . 1 1 1 1 1 . . 1 . . Scrap Searched 10 | . . 1 . 2 . . . . . . 5 . . 2 . . . . . Spaces Dug 156 | . . . . . . . . 13 8 . . 6 . 1 5 5 12 12 94 Terrain Destroyed 220 | . . . . . . 16 . 20 8 . . 6 . 1 5 5 12 12 135 Melee 76 | . . . . . . . . 2 6 . . 6 . 1 5 5 12 12 27 Projectile 90 | . . . . . . . . . 2 . . . . . . . . . 88 AOE 54 | . . . . . . 16 . 18 . . . . . . . . . . 20 Terrain Rammed . | . . . . . . . . . . . . . . . . . . . . Walls Destroyed . | . . . . . . . . . . . . . . . . . . . . Machines Disabled . | . . . . . . . . . . . . . . . . . . . . Actions | -11 -10 -10 -10 -9 -8 -7 -7 -7 -7 -7 -7 -5 -5 -5 -4 -4 -3 -2 -1 --------- Run | Yrd Mat Min Exi Min Mat Fac Was Fac Sto Rec Scr Fac Upp Upp Fac DSF Res Res Acc Total 13619 | 126 268 84 222 424 732 836 163 638 660 805 708 1139 452 188 272 101 945 1086 3770 Wait 1051 | . 6 . . 144 26 116 . 12 102 126 54 108 31 . 4 4 36 . 282 Move 11609 | 100 223 74 218 268 535 623 160 569 502 669 648 972 421 181 248 89 851 1028 3230 Hop 69 | . . . . . . 10 2 5 4 4 . 9 . . . 1 7 3 24 Pick Up 71 | 9 4 2 2 1 8 4 . 9 5 2 2 5 . 2 2 . 2 7 5 Fast Attach 65 | 3 2 . . . 15 8 . 9 2 . . 8 . . 2 . 5 5 6 Attach 37 | 4 . 1 . . 4 10 . 2 1 . . 2 . . 1 1 2 4 5 Detach 27 | . . . . . 1 10 1 2 1 . . 3 . . 1 1 3 1 3 Swap 51 | . . 1 . 4 13 5 . 1 4 . 2 . . 2 1 . 3 3 12 Drop 99 | . 3 2 2 3 18 10 . 8 9 1 2 9 . 2 2 . 4 13 11 Fire 296 | 10 27 4 . 3 108 40 . 2 4 . . . . . . . 2 . 96 Melee 153 | . . . . . . . . 2 26 3 . 16 . 1 5 5 30 22 43 Ram . | . . . . . . . . . . . . . . . . . . . . Kick 2 | . . . . . 2 . . . . . . . . . . . . . . Crush 6 | . 3 . . 1 2 . . . . . . . . . . . . . . Escape Stasis 83 | . . . . . . . . 17 . . . 7 . . 6 . . . 53 Rewire . | . . . . . . . . . . . . . . . . . . . . Trap . | . . . . . . . . . . . . . . . . . . . . Miscellaneous . | . . . . . . . . . . . . . . . . . . . . Route ------- -11/Scrapyard -10/Materials (discovered 3 exits: [*Mat x2] / [*Min]) -10/Mines -10/Exiles -9/Mines -8/Materials (discovered 2 exits: *Fac x2) -7/Factory -7/Waste -7/Factory (discovered 2 exits: [*Fac] / *Sto) -7/Storage -7/Recycling (discovered 2 exits: *Fac / *Scr) -7/Scraptown -5/Factory (discovered 2 exits: *Fac / [*Upp]) -5/Upper Caves -5/Upper Caves -4/Factory -4/DSF -3/Research (discovered 4 exits: *Res / Arm / Qua x2) -2/Research (discovered 5 exits: *Acc x3 / Tes x2) -1/Access To Epsilon Eridani History --------- Turn | Location | Event 10 | -11/Scrapyard | Discovered new exit (range 14) 162 | -11/Scrapyard | Entered Materials 322 | -10/Materials | Build established: Mutant 413 | -10/Materials | Discovered new exit (range 11) 513 | -10/Materials | Discovered new exit (range 15) 578 | -10/Materials | Discovered new exit (range 8) 620 | -10/Materials | Entered Mines 621 | -10/Mines | Assembled infested the area 748 | -10/Mines | Deemed a non-threat by the Exiles lab entrance 749 | -10/Mines | Discovered new exit (range 5) 756 | -10/Mines | Entered Exiles 800 | -10/Exiles | Met 8R-AWN 824 | -10/Exiles | Met EX-HEX 875 | -10/Exiles | Met EX-BIN 894 | -10/Exiles | Aligned with FarCom system 896 | -10/Exiles | Given EX-Vault access code 932 | -10/Exiles | Opened EX-Vault 946 | -10/Exiles | Found Trap Reconfigurator 980 | -10/Exiles | Warned to stay clear of 0b10 Research branches 1036 | -10/Exiles | Met EX-DEC 1046 | -10/Exiles | Learned location of Zion (-6) 1095 | -10/Exiles | Discovered new exit (range 10) 1108 | -10/Exiles | Left Exiles lab with Trap Reconfigurator 1108 | -10/Exiles | Entered Mines 1238 | -9/Mines | Discovered new exit (range 9) 1307 | -9/Mines | Joined a pair of Derelicts in attacking an 0b10 outpost 1699 | -9/Mines | Entered Materials 1699 | -8/Materials | Evolved 4 slots: Propulsion x2, Utility x2 1927 | -8/Materials | Lost 7 parts (4n1u2w) 2251 | -8/Materials | Build established: Scavenger-Skirmisher 2515 | -8/Materials | Discovered new exit (range 14) 2717 | -8/Materials | Build established: Scavenger-Mutant 2783 | -8/Materials | Garrison activated, responded to threat 2915 | -8/Materials | Discovered new exit (range 14) 2977 | -8/Materials | Entered Factory 2977 | -7/Factory | Evolved 2 slots: Propulsion x2 3471 | -7/Factory | Repaired Hrd. Light Armor Plating 3627 | -7/Factory | Lost 5 parts (3n2w) 3822 | -7/Factory | Manually triggered Chute Trap 3822 | -7/Factory | Sucked down chute 3822 | -7/Factory | Entered Waste 3832 | -7/Waste | Spotted C-40 Crusher 3833 | -7/Waste | Spotted C-40 Crusher 3835 | -7/Waste | Spotted C-40 Crusher 3837 | -7/Waste | Spotted C-40 Crusher 3840 | -7/Waste | Spotted C-40 Crusher 3843 | -7/Waste | Crushed by Compactor (1 part destroyed, 2 dropped) 3847 | -7/Waste | Spotted C-40 Crusher 3851 | -7/Waste | Discovered new exit (range 20) 3878 | -7/Waste | Entered Factory 3896 | -7/Factory | Discovered new exit (range 5) 3967 | -7/Factory | Identified exit to DSF 4116 | -7/Factory | Discovered new exit (range 7) 4132 | -7/Factory | Entered Storage 4140 | -7/Storage | Identified exit to Recycling 4186 | -7/Storage | Assisted by bots powering up and referring to "LRC-V3" 4239 | -7/Storage | Lost 4 allies 4280 | -7/Storage | Found Prototype Launcher 4423 | -7/Storage | Used back door to open Recycling access 4433 | -7/Storage | Entered Recycling 4433 | -7/Recycling | Accompanied by 1 ally 4456 | -7/Recycling | Lost 5 allies 4507 | -7/Recycling | Discovered new exit (range 16) 4650 | -7/Recycling | Scanned before Scraplab entrance 4693 | -7/Recycling | Entered Scraplab 4695 | -7/Recycling | Discovered new exit (range 2) 4720 | -7/Recycling | Entered Scraptown 4720 | -7/Scraptown | Accompanied by 1 ally 4730 | -7/Scraptown | Visited Cave Peace 4744 | -7/Scraptown | Visited Bundlers 4768 | -7/Scraptown | Visited The Evicted 4772 | -7/Scraptown | Visited SPCMW 4784 | -7/Scraptown | Visited Assassins FH 4786 | -7/Scraptown | Visited Awakened 4801 | -7/Scraptown | Visited Cyclists 4804 | -7/Scraptown | Build established: Hacker-Sprinter 4807 | -7/Scraptown | Turned away by UFD registrar 4836 | -7/Scraptown | Discovered new exit (range 11) 5127 | -7/Scraptown | Build established: Hacker-Mutant 5156 | -7/Scraptown | Entered Factory 5156 | -5/Factory | Accompanied by 1 ally 5156 | -5/Factory | Evolved 4 slots: Power x1, Utility x3 5219 | -5/Factory | Discovered new exit (range 5) 5308 | -5/Factory | Identified exit to DSF 5537 | -5/Factory | Discovered new exit (range 4) 5547 | -5/Factory | Entered Upper Caves 5553 | -5/Upper Caves | Attracted the attention of an 0b10 checkpoint 5648 | -5/Upper Caves | Learned Factory terminal intel 5654 | -5/Upper Caves | Discovered new exit (range 8) 5667 | -5/Upper Caves | Entered another Upper Caves area 5675 | -5/Upper Caves | Discovered new exit (range 10) 5704 | -5/Upper Caves | Learned Factory non-interactive machine intel 5706 | -5/Upper Caves | Entered an active Warlord outpost 5714 | -5/Upper Caves | Entered Factory 5714 | -4/Factory | Evolved 2 slots: Utility x2 5715 | -4/Factory | Loaded intel: 208 non-interactive machine locations 5716 | -4/Factory | Loaded intel: 26 terminal locations 5799 | -4/Factory | Identified exit to DSF 5800 | -4/Factory | Entered DSF 5815 | -4/DSF | Additional patrols routed to DSF 5822 | -4/DSF | Build established: Hacker-Sprinter 5827 | -4/DSF | Discovered new exit (range 15) 5838 | -4/DSF | Entered Research 5838 | -3/Research | Evolved 2 slots: Utility x2 5903 | -3/Research | Found Prototype Processor 5903 | -3/Research | Identified Exp. Targeting Computer 6051 | -3/Research | Discovered new exit (range 5) 6112 | -3/Research | Identified exit to Armory 6112 | -3/Research | Identified exit to Quarantine 6132 | -3/Research | Spotted B-86 Titan 6156 | -3/Research | Entered another Research area 6156 | -2/Research | Evolved 2 slots: Utility x2 6257 | -2/Research | Identified exit to Testing 6257 | -2/Research | Identified exit to Access 6257 | -2/Research | Watched by a mysterious "MATRIX" hacker. 6374 | -2/Research | Build established: Wizard-Sprinter 6479 | -2/Research | Entered Access 6479 | -1/Access | Evolved 2 slots: Propulsion x1, Utility x1 6536 | -1/Access | Identified exit to Surface 6553 | -1/Access | Spotted B-99 Colossus 6614 | -1/Access | Spotted B-99 Colossus 6775 | -1/Access | Build established: Wizard-Ninja 6788 | -1/Access | Spotted B-99 Colossus 7146 | -1/Access | Found Heavy Servo Lattice 7372 | -1/Access | Build established: Wizard-Sprinter 7649 | -1/Access | Spotted B-99 Colossus 7649 | -1/Access | Spotted B-99 Colossus 7656 | -1/Access | Energy Cycler disabled 7729 | -1/Access | Search patrols dispatched 7759 | *** | Escaped! Last Messages --------------- 07715_ Slug penetrates Door. 07715_ Slug penetrates Energy Cycler. 07718_ Slug penetrates Wall. 07718_ Backup Power VII destroyed. 07718_ Slug penetrates Wall. 07726_ Penetrated by Slug. 07726_ Imp. Light Armor Plating destroyed. 07729_ ALERT: Heightened foreign activity detected, multiple search patrols dispatched. 07729_ Slug penetrates Wall. 07729_ Penetrated by Slug. 07729_ Slug penetrates Wall. 07733_ Connecting with Terminal... 07733_ ALERT: Suspicious activity at Terminal A001. Dispatching Investigation squad. 07735_ Sealed Heavy Doors breached. 07746_ Slug penetrates Sealed Heavy Doors. 07746_ Penetrated by Slug. 07752_ Slug penetrates Sealed Heavy Doors. 07759_ Penetrated by Slug. Map ----- +----------------------------------------------------+ | ##########???????## ######## * | | + ##???????## ######## | | ########### ##???????## #?????###############+# | | ###########+##???????## #?????###### | | ! ##???????## #?????????## | | ##???????## #?????????## """" | | ##???????## #?????????## ! """" | | ##???????## #?????????## """" | | ##????????# BB#?????????## """" | | ######+#######?????#### BBB####??????## """" | | ###### #######?????# B #??????## [ """" | | ######+###?????????# #??????## | | !##?????????# #??????## | | ##?????????# #??????## | | """##?????????# #??????## | | """##?????????? ???????####+###+#### | | R"##?????????? ?????????### | | """##??????????""""" ""??????????## | | ! "" ##??????????????" "???????????## ##+#### | | ###???????##"???" "??"##??????## # | | ############""""" """"########## # | | ########"########### ########## # | | ####### ### ### # # | | ?????## ### ### # # | | ????? # ### "" ###" # # | | ????? # ! ### "@ ###" # # """ | | ????? # ### ###" # # """ | | ????? # ### ###T # # """ | | ????? # ### ###" # # """ | | ????? # "" ### ###" # # """ | | ????? # """" "# ##" # # | | ????? # """" ###"" ### # # | | ????? # """" ###"" ### # # | | ????? # """" ###"" ### + # | | ????A + """" ###T ### # ####### | | ????? # "" ###"" ### # ####### | | ????? # "" *###"" ########## ##????? | | ??## ##############"" h######### ####### | | ??## ####### | | ??## h | | ??##################################### | | ??##################################### ! | | ?????????????????????## ######## =* | | ?????????????????????## # ## = | | ????????############### # ###" | | ????????##### ######### + | | ????????## # # * ############+## | | ????????## # # #???## # | | ????????## """""" # #######???## # | | ????????## ""S""" / ##????????## "" # | +----------------------------------------------------+ Best States ------------- Heat Dissipation 83 Energy Generation 40 Energy Capacity 280 Matter Stores 300 Matter Capacity 300 Sight Range 22 Terrain Scan Range 16 Terrain Scan Density 10 ECM Strength 2 Jamming Range 16 Power Amplification 30 Armor Coverage 375 Propulsion Shielding 33 Weapon Shielding 66 Evasion (%) 77 Targeting Accuracy 6 Melee Accuracy 8 Core Analysis 6 Recoil Reduction 4 Offensive Hacking 68 Defensive Hacking 24 Item Schematics ----------------- Cld. VTOL Module | -7/Factory | Scanalyzed Robot Schematics ------------------ None Fabricated ------------ Nothing Repaired ---------- Hrd. Light Armor Plating | 60% | -7/Factory Studied --------- VTOL Module | -7/Factory | Hacked Xenon Bombardment Thruster | -7/Factory | Hacked Shock Bomb Launcher | -7/Factory | Hacked Hvy. Missile Launcher | -7/Factory | Hacked Chainsword | -7/Factory | Hacked Assault Cannon | -7/Factory | Hacked Field Propulsion Drive | -3/Research | Hacked Mic. Antimatter Reactor | -3/Research | Hacked Impulse Thruster Array | -2/Research | Hacked Enh. Nova Cannon | -2/Research | Hacked Alien Tech Used ----------------- None Achievements -------------- Wheee! Challenges ------------ None Game ------ Seed RainbowCatalystFocus Manual? 0 Play Time 01:56:35 Cumulative 173.1 hours Start 2026.03.30 @ 19:28:38 End 2026.03.30 @ 21:23:52 Sessions 1 Manual Loads 0 Difficulty Rogue Special Mode None Game No. 110 Rogue 106 Adventurer 4 Explorer 0 Win Type 0 Total 19 Types 18/0/1/0/0/0/0/0/0/0 Lore% 83 Gallery% 59 Achievement% 53 Wizard Run 0 Options --------- Layout 0 ASCII 0 Keyboard 1 Movement Vi Keybinds 0 Fullscreen 0 Font 16/SmallcapsGlow Map View 76x50 Zoom Use 0% Tactical HUD 1 Map Filters NONE Filters NONE Steam 1 RUN: 6e792cde-4311-45b4-95bb-af7584c0eea6